bitfinex-derivatives/quotes_ETHF0:USTF0_20210703
["timestamp","ask_amount","ask_price","bid_price","bid_amount"]
[1625315622344,2.20527,2217.1,2216.8,0.13364419]
[1625315624001,41.7298,2216.9,2216.8,0.13364419]
[1625315624600,45.3265,2216.9,2216.7,2.20527]
[1625315626107,2.20527,2216.8,2216.7,2.20527]
[1625315631889,4.87317,2216.8,2216.7,2.20527]
[1625315635494,4.87317,2216.8,2215.7,1.0]
[1625315635595,4.87317,2216.8,2215.6,3.46024452]
[1625315635746,4.87317,2216.8,2215.8,0.80201579]
[1625315636096,2.20527,2216.0,2215.9,2.20527]
[1625315636396,57.41797,2216.0,2215.9,2.20527]
[1625315636498,57.41797,2216.0,2215.9,3.00730291]
[1625315638151,59.62324,2216.0,2215.9,3.00730291]
[1625315638501,59.62324,2216.0,2215.9,2.33894215]
[1625315640710,59.62324,2216.0,2215.9,2.20527]
[1625315643416,4.41054,2216.0,2215.9,2.20527]
[1625315644518,2.20527,2216.0,2215.9,2.20527]
[1625315645217,2.20527,2216.0,2215.2,49.2409]
[1625315645318,2.20527,2216.0,2215.2,4.759]
[1625315645624,2.20527,2216.0,2215.1,3.45770964]
[1625315645823,2.20527,2216.0,2214.3,1.33050553]
[1625315645824,46.9289,2215.0,2214.5,17.65353363]
[1625315646121,3.6344,2215.2,2214.5,3.45843363]
[1625315646272,2.20527,2215.0,2214.9,2.20527]
[1625315646722,2.20527,2215.0,2214.9,2.33899817]
[1625315648133,2.20527,2215.0,2214.9,2.20527]
[1625315648234,4.41054,2215.0,2214.9,2.20527]
[1625315677740,4.41054,2215.0,2214.7,2.20527]
[1625315682251,4.41054,2215.0,2214.4,2.20527]
[1625315682350,48.4305,2214.7,2214.4,2.20527]
[1625315682455,2.20527,2214.5,2214.4,2.20527]
[1625315684464,4.41054,2214.5,2214.4,2.20527]
[1625315691684,3.51824,2214.5,2214.4,2.20527]
[1625315692937,1.37674,2214.5,2214.4,2.20527]
[1625315693488,1.0,2215.6,2214.4,2.20527]
[1625315693591,14.6046,2215.7,2214.4,2.20527]
[1625315694642,2.20527,2215.0,2214.9,4.68017]
[1625315694741,5.0,2217.5,2214.9,5.68017]
[1625315694840,3.35224709,2217.4,2214.9,10.68017]
[1625315694942,14.68,2217.2,2214.9,10.68017]
[1625315695391,14.68,2217.2,2215.0,16.392456]
[1625315695493,14.68,2217.2,2215.7,48.0356]
[1625315695640,14.68,2217.2,2215.7,49.9415]
[1625315696092,14.68,2217.2,2215.7,53.9415]
[1625315696493,14.68,2217.2,2215.8,16.396614]
[1625315696593,2.20527,2216.9,2216.8,2.20527]
[1625315696692,2.20527,2216.9,2216.8,4.96817]
[1625315697942,51.72027,2216.9,2216.8,4.96817]
[1625315698393,51.72027,2216.9,2216.8,2.7629]
[1625315698643,53.92554,2216.9,2216.8,2.7629]
[1625315698945,53.92554,2216.9,2215.9,2.20527]
[1625315700600,2.20527,2216.0,2215.9,2.20527]
[1625315702752,44.70177,2216.0,2215.9,2.20527]
[1625315703210,44.70177,2216.0,2215.2,20.5208]
[1625315703309,44.70177,2216.0,2215.2,19.5208]
[1625315703509,44.70177,2216.0,2215.2,4.759]
[1625315704524,2.20527,2216.0,2215.2,4.759]
[1625315704625,2.20527,2216.0,2215.9,4.41054]
[1625315704823,2.20527,2216.0,2215.9,7.48194]
[1625315710998,2.20527,2216.0,2215.9,49.63764]
[1625315711350,0.68527,2216.0,2215.9,49.63764]
[1625315711449,1.0,2217.2,2215.9,49.63764]
[1625315711550,14.6055,2217.3,2215.9,49.63764]
[1625315711652,14.6055,2217.3,2215.9,50.63764]
[1625315711750,14.6055,2217.3,2215.9,55.63764]
[1625315712251,14.6055,2217.3,2216.0,0.13365839]
[1625315712706,2.20527,2217.0,2216.8,2.20527]
[1625315712804,2.20527,2217.0,2216.8,5.86937]
[1625315714821,2.20527,2217.0,2216.8,3.6641]
[1625315716078,2.20527,2217.0,2216.1,1.0]
[1625315716227,2.20527,2217.0,2216.0,4.759]
[1625315716680,2.20527,2217.0,2215.5,5.759]
[1625315716777,2.20527,2217.0,2216.6,2.20527]
[1625315718731,2.20527,2216.7,2216.6,2.20527]
[1625315719585,46.81017,2216.7,2216.6,2.20527]
[1625315726410,2.20527,2216.7,2216.6,2.20527]
[1625315726962,54.28517,2216.7,2216.6,2.20527]
[1625315729679,2.20527,2216.7,2216.6,2.20527]
[1625315730080,2.20527,2217.0,2216.6,2.20527]
[1625315730833,2.20527,2217.0,2216.9,2.20527]
[1625315730936,2.20527,2217.0,2216.9,4.85007]
[1625315732635,46.87277,2217.0,2216.9,4.85007]
[1625315733888,2.20527,2217.0,2216.9,4.85007]
[1625315736212,41.39527,2217.0,2216.9,4.85007]
[1625315736310,2.20527,2217.0,2216.9,4.85007]
[1625315736863,51.65657,2217.0,2216.9,4.85007]
[1625315737967,51.65657,2217.0,2216.9,2.20527]
[1625315738067,54.68937,2217.0,2216.6,2.20527]
[1625315738318,54.68937,2217.0,2215.8,1.0]
[1625315738421,54.68937,2217.0,2215.2,5.0]
[1625315738519,54.68937,2217.0,2215.5,8.41634741]
[1625315738676,49.2864,2216.2,2215.5,8.41634741]
[1625315738829,49.2864,2216.2,2215.5,4.759]
[1625315738929,55.68937,2217.0,2215.5,4.759]
[1625315739029,2.20527,2216.2,2216.1,4.41054]
[1625315744142,2.20527,2216.4,2216.1,4.41054]
[1625315750913,51.8295,2216.2,2216.1,4.41054]
[1625315753018,2.20527,2216.4,2216.1,4.41054]
[1625315762104,14.8966,2217.3,2216.1,4.41054]
[1625315762251,14.8966,2217.3,2216.1,5.31214]
[1625315762552,14.8966,2217.3,2216.2,1.0]
[1625315762653,14.8966,2217.3,2216.8,3.0353]
[1625315762903,2.58201145,2217.7,2216.8,3.0353]
[1625315763101,2.20527,2217.3,2217.2,2.20527]
[1625315765106,4.41054,2217.3,2217.2,2.20527]
[1625315773724,51.19164,2217.3,2217.2,2.20527]
[1625315773823,51.19164,2217.3,2216.4,1.0]
[1625315773924,51.19164,2217.3,2216.0,3.5271]
[1625315774025,51.19164,2217.3,2216.1,1.0]
[1625315774127,51.19164,2217.3,2216.0,2.6217]
[1625315774275,51.19164,2217.3,2215.6,5.0]
[1625315774388,51.19164,2217.3,2216.2,0.13367126]
[1625315774626,38.7623,2216.5,2216.2,0.13367126]
[1625315774725,41.5949,2216.5,2216.0,0.13367114]
[1625315775079,41.5949,2216.5,2215.9,1.86122876]
[1625315775279,2.20527,2216.4,2216.3,2.20527]
[1625315777243,4.41054,2216.4,2216.3,2.20527]
[1625315792346,1.81804355,2216.9,2216.3,2.20527]
[1625315792699,1.82162902,2217.0,2216.3,2.20527]
[1625315793299,4.02689902,2217.0,2216.9,2.20527]
[1625315793400,4.02689902,2217.0,2216.9,5.00017]
[1625315793550,2.20527,2217.0,2216.9,5.00017]
[1625315795454,4.41054,2217.0,2216.9,5.00017]
[1625315799269,58.77724,2217.0,2216.9,5.00017]
[1625315800827,58.77724,2217.0,2216.9,5.89257]
[1625315801126,4.41054,2217.0,2216.9,5.89257]
[1625315802028,4.41054,2217.0,2216.9,5.00017]
[1625315802828,47.39444,2217.0,2216.9,5.00017]
[1625315805981,47.39444,2217.0,2216.9,2.7949]
[1625315806132,4.41054,2217.0,2216.3,2.20527]
[1625315806484,4.41054,2217.0,2216.4,0.13367598]
[1625315807441,2.20527,2216.5,2216.4,0.13367598]
[1625315812007,57.58317,2217.0,2216.4,0.13367598]
[1625315813416,57.58317,2217.0,2216.7,2.20527]
[1625315813516,46.7402,2216.8,2216.7,4.63657]
[1625315814568,57.58317,2217.0,2216.7,4.63657]
[1625315815471,59.78844,2217.0,2216.7,4.63657]
[1625315817275,4.41054,2217.0,2216.7,4.63657]
[1625315817976,47.1093,2216.9,2216.7,4.63657]
[1625315818631,4.41054,2217.0,2216.7,4.63657]
[1625315821249,45.644,2216.8,2216.7,4.63657]
[1625315821451,4.41054,2217.0,2216.7,4.63657]
[1625315821550,6.23764968,2217.0,2216.7,4.63657]
[1625315822000,55.5349,2216.8,2216.7,4.63657]
[1625315825409,4.41054,2217.0,2216.7,4.63657]
[1625315826361,5.71556752,2217.0,2216.7,4.63657]
[1625315829473,49.067,2216.8,2216.7,4.63657]
[1625315830379,48.94,2216.9,2216.7,4.63657]
[1625315834203,50.24795832,2216.9,2216.7,4.63657]
[1625315837013,48.94,2216.9,2216.7,4.63657]
[1625315837565,5.71872906,2217.0,2216.7,4.63657]
[1625315838815,46.0691,2216.9,2216.7,4.63657]
[1625315841522,44.2991,2216.8,2216.7,4.63657]
[1625315841626,46.0691,2216.9,2216.7,4.63657]
[1625315841774,5.71872906,2217.0,2216.7,4.63657]
[1625315842527,1.30875674,2216.9,2216.7,4.63657]
[1625315843578,41.28115674,2216.9,2216.7,4.63657]
[1625315844482,41.28115674,2216.9,2216.7,2.4313]
[1625315844579,41.28115674,2216.9,2216.3,2.20527]
[1625315845083,41.28115674,2216.9,2216.4,0.13368193]
[1625315845682,4.41054,2216.5,2216.4,0.13368193]
[1625315849754,4.41054,2216.5,2216.4,1.04218193]
[1625315849855,4.41054,2216.5,2216.4,0.13368193]
[1625315851809,2.20527,2216.5,2216.4,0.13368193]
[1625315868761,54.25857,2216.5,2216.4,0.13368193]
[1625315870569,2.20527,2216.5,2216.4,0.13368193]
[1625315876290,2.20527,2216.5,2216.4,1.46884273]
[1625315877342,51.02217,2216.5,2216.4,1.46884273]
[1625315879556,51.02217,2216.5,2216.4,0.13368193]
[1625315880462,2.20527,2216.5,2216.4,0.13368193]
[1625315884328,2.20527,2216.5,2216.4,1.4691146]
[1625315886182,50.78647,2216.5,2216.4,1.4691146]
[1625315886433,2.20527,2216.5,2216.4,1.4691146]
[1625315886540,2.20527,2216.5,2216.4,2.3656146]
[1625315886639,2.20527,2216.5,2216.4,1.4691146]
[1625315888148,2.20527,2216.5,2216.4,2.3684146]
[1625315888248,2.20527,2216.5,2216.4,1.4691146]
[1625315888358,2.20527,2216.5,2216.4,0.80207586]
[1625315888660,2.20527,2216.5,2216.4,2.6718889]
[1625315891465,2.20527,2216.5,2216.4,3.47336014]
[1625315897274,2.20527,2216.5,2216.4,0.80207586]
[1625315898124,1.30990282,2217.0,2216.4,0.80207586]
[1625315898225,1.30990282,2217.0,2216.4,5.80207586]
[1625315898327,1.30990282,2217.0,2216.4,8.47355776]
[1625315898424,2.82e-06,2217.0,2216.4,8.47355776]
[1625315898530,1.83396482,2217.1,2216.4,8.47355776]
[1625315898628,1.26794974,2217.2,2217.0,38.2224]
[1625315898726,3.40574734,2217.4,2217.1,5.0]
[1625315898827,1.99864734,2217.4,2217.1,5.0]
[1625315899029,2.6193723,2217.8,2217.2,0.8017489]
[1625315899331,4.19099567,2218.2,2217.2,0.8017489]
[1625315899732,4.19099567,2218.2,2217.3,1.33424806]
[1625315899832,58.71239567,2218.2,2217.3,6.33424806]
[1625315899934,58.71239567,2218.2,2218.1,4.41054]
[1625315900037,54.5214,2218.2,2218.1,4.41054]
[1625315900586,54.5214,2218.2,2218.1,4.54413108]
[1625315900933,54.5214,2218.2,2218.1,4.41054]
[1625315902794,54.5214,2218.2,2217.4,1.0]
[1625315902896,56.8601,2218.2,2216.8,1.0]
[1625315902994,56.8601,2218.2,2216.7,5.5898549]
[1625315903143,56.8601,2218.2,2216.7,4.25892771]
[1625315903247,39.781,2217.0,2216.6,4.25917442]
[1625315903496,39.781,2217.0,2216.7,0.80172368]
[1625315903945,41.98627,2217.0,2216.9,4.41054]
[1625315904648,41.98627,2217.0,2216.9,4.54416189]
[1625315905799,2.20527,2217.0,2216.9,4.54416189]
[1625315906400,50.83427,2217.0,2216.9,0.13362189]
[1625315906903,50.83427,2217.0,2216.3,0.80178959]
[1625315907004,53.39387,2217.0,2216.3,0.80178959]
[1625315907251,53.39387,2217.0,2216.2,0.80188558]
[1625315907652,53.39387,2217.0,2216.1,0.80193746]
[1625315907653,56.0091,2216.3,2216.1,0.80193746]
[1625315908002,56.0091,2216.3,2216.2,2.20527]
[1625315908202,2.20527,2216.5,2216.2,2.20527]
[1625315908406,2.20527,2216.5,2216.2,2.33894112]
[1625315908756,2.20527,2216.5,2216.3,0.13367117]
[1625315910063,4.41054,2216.5,2216.3,0.13367117]
[1625315912672,4.41054,2216.5,2216.3,3.35667117]
[1625315912874,4.41054,2216.5,2216.3,4.02492567]
[1625315913275,4.41054,2216.5,2216.4,0.13365203]
[1625315914028,4.41054,2216.5,2216.3,0.13365117]
[1625315914778,4.41054,2216.5,2216.3,0.8018957]
[1625315916579,55.31104,2216.5,2216.3,0.13365117]
[1625315916982,55.31104,2216.5,2216.3,0.8019075]
[1625315917332,4.41054,2216.5,2216.3,0.8019075]
[1625315917734,2.20527,2216.5,2216.3,0.8019075]
[1625315917935,1.0,2217.6,2216.3,0.8019075]
[1625315918034,4.16437649,2218.5,2216.3,3.4595075]
[1625315918135,9.9642528,2218.7,2216.3,3.4595075]
[1625315918136,2.20527,2217.2,2217.1,2.20527]
[1625315918234,1.20527,2217.2,2217.1,5.74947]
[1625315918435,14.2891,2218.4,2217.1,5.74947]
[1625315918538,48.676,2218.0,2217.1,5.88309225]
[1625315918936,48.676,2218.0,2217.1,5.74947]
[1625315919137,1.0,2217.9,2217.1,5.74947]
[1625315919787,51.1381,2217.4,2217.1,5.74947]
[1625315920090,2.20527,2217.2,2217.1,5.74947]
[1625315920990,3.20527,2217.2,2217.1,5.74947]
[1625315921393,2.20527,2217.2,2217.1,5.74947]
[1625315922395,3.20527,2217.2,2217.1,5.74947]
[1625315942978,2.20527,2217.2,2217.1,5.74947]
[1625315947238,3.20527,2217.2,2217.1,5.74947]
[1625315947893,2.20527,2217.2,2217.1,5.74947]
[1625315948140,52.34337,2217.4,2217.1,5.74947]
[1625315948141,1.0,2217.3,2217.1,5.74947]
[1625315948444,50.1381,2217.4,2217.2,2.20527]
[1625315949044,51.1381,2217.4,2217.2,2.20527]
[1625315949143,50.1381,2217.4,2217.2,2.20527]
[1625315951748,51.1381,2217.4,2217.2,2.20527]
[1625315956359,1.0,2217.4,2217.2,2.20527]
[1625315962141,42.0608,2217.3,2217.2,2.20527]
[1625315962440,43.0608,2217.3,2217.2,2.20527]
[1625315970815,43.0608,2217.3,2216.2,14.2681]
[1625315971065,43.0608,2217.3,2216.1,3.45720538]
[1625315971316,46.6575,2216.7,2216.1,3.45720538]
[1625315971418,46.6575,2216.7,2216.2,0.80183462]
[1625315972730,46.6575,2216.7,2216.6,2.20527]
[1625315973181,1.0,2216.7,2216.6,2.20527]
[1625315973283,1.0,2216.7,2216.6,2.33891377]
[1625315973381,2.20527,2216.8,2216.6,2.33891377]
[1625315973984,2.20527,2216.8,2216.7,0.13363875]
[1625315974084,3.20527,2216.8,2216.7,0.13363875]
[1625315974736,5.41054,2216.8,2216.7,0.13363875]
[1625315987818,4.41054,2216.8,2216.7,0.13363875]
[1625315987966,1.0,2217.5,2216.7,3.10853875]
[1625315988166,1.0,2217.5,2216.7,3.77669032]
[1625315988469,1.0,2217.5,2216.8,0.80177204]
[1625315988767,2.20527,2217.2,2217.1,2.20527]
[1625315988868,3.20527,2217.2,2217.1,2.20527]
[1625315989276,3.20527,2217.2,2217.1,2.33889624]
[1625315990881,5.41054,2217.2,2217.1,2.33889624]
[1625315991285,50.82884,2217.2,2217.1,2.33889624]
[1625315995673,5.41054,2217.2,2217.1,2.33889624]
[1625315998416,56.98884,2217.2,2217.1,2.33889624]
[1625315999973,5.41054,2217.2,2217.1,2.33889624]
[1625316003592,5.41054,2217.2,2217.1,3.00700421]
[1625316004280,45.27364,2217.2,2217.1,3.00700421]
[1625316004425,5.41054,2217.2,2217.1,3.00700421]
[1625316004625,5.41054,2217.2,2217.1,2.20527]
[1625316005638,50.83314,2217.2,2217.1,2.20527]
[1625316005889,50.83314,2217.2,2217.1,2.33889834]
[1625316009103,5.41054,2217.2,2217.1,2.33889834]
[1625316010508,61.41664,2217.2,2217.1,2.33889834]
[1625316011012,65.15674,2217.2,2217.1,2.33889834]
[1625316012864,65.15674,2217.2,2217.1,2.20527]
[1625316013416,65.15674,2217.2,2216.6,2.20527]
[1625316013514,65.15674,2217.2,2216.3,3.46644975]
[1625316013969,65.15674,2217.2,2216.4,0.80195107]
[1625316014368,44.0826,2216.5,2216.4,0.80195107]
[1625316014518,48.7103,2216.5,2216.4,0.80195107]
[1625316014718,48.7103,2216.5,2216.2,0.80204335]
[1625316015070,4.41054,2216.3,2216.2,0.80204335]
[1625316015171,5.41054,2216.3,2216.2,0.80204335]
[1625316015470,5.41054,2216.3,2216.2,0.13367389]
[1625316017377,5.41054,2216.3,2215.9,0.13368079]
[1625316017978,5.41054,2216.3,2215.7,0.8020922]
[1625316018129,52.1166,2215.8,2215.7,0.8020922]
[1625316018444,54.717,2215.8,2215.7,0.8020922]
[1625316018743,54.717,2215.8,2215.7,0.13368203]
[1625316019144,59.12754,2215.8,2215.5,0.80217361]
[1625316019597,59.12754,2215.8,2215.5,3.46729103]
[1625316019851,59.12754,2215.8,2215.6,0.13370606]
[1625316020608,59.12754,2215.8,2215.5,0.13370865]
[1625316024266,8.01094,2215.8,2215.5,0.13370865]
[1625316024366,5.41054,2215.8,2215.5,0.13370865]
[1625316025017,50.84564,2215.8,2215.5,0.13370865]
[1625316026324,5.41054,2215.8,2215.5,0.13370865]
[1625316026873,51.72054,2215.8,2215.5,0.13370865]
[1625316027378,5.41054,2215.8,2215.5,0.13370865]
[1625316027475,5.41054,2215.8,2215.4,2.20527]
[1625316027581,4.41054,2215.8,2215.4,2.20527]
[1625316027830,4.41054,2215.8,2215.5,0.13369162]
[1625316027927,4.41054,2215.8,2215.5,2.42439162]
[1625316028079,4.41054,2215.8,2215.7,52.1944]
[1625316028180,4.41054,2215.8,2215.5,2.42439162]
[1625316028278,4.41054,2215.8,2215.6,0.13368644]
[1625316028984,4.41054,2215.8,2215.6,0.80207654]
[1625316029080,4.41054,2215.8,2215.6,3.4608613]
[1625316029230,2.20527,2215.8,2215.7,2.20527]
[1625316029380,2.20527,2215.8,2215.7,2.3389467]
[1625316057540,2.20527,2215.8,2215.7,5.1447467]
[1625316057892,3.20527,2215.8,2215.7,5.1447467]
[1625316058399,3.20527,2215.8,2215.7,5.01107]
[1625316058496,3.20527,2215.8,2215.7,2.20527]
[1625316061214,3.20527,2215.8,2215.7,5.42897]
[1625316061365,3.20527,2215.8,2215.7,5.56265942]
[1625316064069,3.20527,2215.8,2215.7,5.42897]
[1625316066483,3.20527,2215.8,2215.7,2.20527]
[1625316069644,3.20527,2215.8,2215.4,2.20527]
[1625316071556,2.20527,2215.5,2215.4,2.20527]
[1625316071958,2.20527,2215.5,2215.4,2.33897135]
[1625316074471,3.20527,2215.5,2215.4,2.33897135]
[1625316074571,3.20527,2215.5,2215.4,2.20527]
[1625316075375,3.20527,2215.5,2215.4,2.33897268]
[1625316075773,2.20527,2215.5,2215.4,2.33897268]
[1625316082601,2.20527,2215.5,2215.4,5.89427268]
[1625316083099,2.20527,2215.5,2215.4,7.75581648]
[1625316083448,2.20527,2215.5,2215.4,8.55393283]
[1625316083751,2.20527,2215.5,2215.4,7.75604283]
[1625316083851,2.20527,2215.8,2215.4,7.75604283]
[1625316084249,3.20527,2215.8,2215.5,1.86175943]
[1625316084352,3.20527,2215.8,2215.5,1.9954553]
[1625316084550,3.20527,2215.8,2215.5,0.13369587]
[1625316084699,3.20527,2215.8,2215.6,0.13369641]
[1625316085164,3.20527,2215.8,2215.4,1.86175889]
[1625316085275,5.61977,2215.8,2215.4,1.86175889]
[1625316085414,5.61977,2215.8,2215.2,4.06752505]
[1625316085711,5.41054,2215.3,2215.2,1.86225505]
[1625316085812,8.70294,2215.3,2215.2,1.86225505]
[1625316086014,8.70294,2215.3,2215.1,4.52262201]
[1625316086115,8.70294,2215.3,2215.2,0.13371498]
[1625316089431,8.70294,2215.3,2215.1,1.86225765]
[1625316089789,8.70294,2215.3,2214.7,2.20527]
[1625316090140,8.70294,2215.3,2214.8,0.13375151]
[1625316091743,2.20527,2214.9,2214.8,0.13375151]
[1625316091842,3.20527,2214.9,2214.8,0.13375151]
[1625316093043,3.20527,2214.9,2214.8,1.04215151]
[1625316093594,3.20527,2214.9,2214.8,0.13375151]
[1625316094497,3.20527,2214.9,2214.7,2.20527]
[1625316094895,3.20527,2214.9,2214.8,0.13375305]
[1625316096348,3.20527,2214.9,2214.7,3.09607]
[1625316096448,3.20527,2214.9,2214.7,2.20527]
[1625316097450,3.20527,2214.9,2214.8,0.1337538]
[1625316098202,3.20527,2214.9,2214.7,2.20527]
[1625316099709,3.20527,2214.9,2214.8,0.13375655]
[1625316100057,3.20527,2214.9,2214.7,2.20527]
[1625316101566,3.20527,2214.9,2214.8,0.13375645]
[1625316101917,3.20527,2214.9,2214.7,2.20527]
[1625316103822,2.20527,2214.8,2214.7,2.20527]
[1625316103923,5.94527,2214.8,2214.7,2.20527]
[1625316104425,5.94527,2214.8,2214.7,2.33902565]
[1625316110305,5.94527,2214.8,2214.7,2.20527]
[1625316111856,5.94527,2214.8,2214.5,1.86322024]
[1625316112156,5.94527,2214.8,2214.6,0.13375376]
[1625316112607,5.94527,2214.8,2214.5,0.13375336]
[1625316113858,2.20527,2214.6,2214.5,0.13375336]
[1625316113959,3.20527,2214.6,2214.5,0.13375336]
[1625316115264,3.20527,2214.6,2214.3,1.86229813]
[1625316115713,3.20527,2214.6,2213.7,1.86203428]
[1625316115962,2.20527,2214.0,2213.9,2.20527]
[1625316116415,2.20527,2214.0,2213.9,2.33905265]
[1625316117910,4.41054,2214.0,2213.9,2.33905265]
[1625316119063,5.41054,2214.0,2213.9,2.33905265]
[1625316119263,5.41054,2214.0,2213.8,6.981e-05]
[1625316119366,7.95424,2214.0,2213.8,6.981e-05]
[1625316119614,7.95424,2214.0,2213.3,7.41772005]
[1625316119865,2.20527,2213.4,2213.3,4.86399005]
[1625316120016,2.20527,2213.4,2213.3,2.65872005]
[1625316120224,2.20527,2213.4,2213.1,5.66160607]
[1625316120225,2.20527,2213.4,2213.2,2.65881217]
[1625316120414,3.20527,2213.4,2213.2,2.65881217]
[1625316120565,2.20527,2213.4,2213.2,2.65881217]
[1625316121417,2.20527,2213.4,2213.1,4.86425462]
[1625316121868,2.20527,2213.2,2213.1,4.86425462]
[1625316122772,2.20527,2213.2,2213.1,5.53333452]
[1625316123421,2.20527,2213.2,2213.1,2.8743499]
[1625316123773,0.24550302,2213.2,2213.1,2.8743499]
[1625316123872,0.24550302,2213.2,2213.1,19.1760479]
[1625316124174,1.0,2214.0,2213.1,19.1760479]
[1625316124273,1.0,2214.0,2213.1,21.6818479]
[1625316124575,1.0,2214.0,2213.2,2.65674739]
[1625316124677,15.4158,2214.5,2213.2,3.32576469]
[1625316124875,15.4158,2214.5,2213.5,2.65639981]
[1625316124975,1.0,2214.4,2213.5,7.41539981]
[1625316125174,15.4158,2214.5,2213.5,7.41539981]
[1625316125278,15.4158,2214.5,2213.6,16.347533]
[1625316125425,15.4158,2214.5,2213.6,18.656333]
[1625316125878,2.20527,2214.0,2213.9,2.20527]
[1625316127878,4.41054,2214.0,2213.9,2.20527]
[1625316130454,4.41054,2214.0,2213.7,2.20527]
[1625316131603,5.41054,2214.0,2213.7,2.20527]
[1625316132059,4.41054,2214.0,2213.7,2.20527]
[1625316139429,5.41054,2214.0,2213.7,2.20527]
[1625316140730,5.41054,2214.0,2213.6,2.3088]
[1625316140831,5.41054,2214.0,2213.5,6.08703005]
[1625316141242,5.41054,2214.0,2213.5,4.759]
[1625316142000,2.20527,2213.6,2213.5,6.96427]
[1625316146862,2.20527,2213.6,2213.5,2.20527]
[1625316153976,3.20527,2213.6,2213.5,2.20527]
[1625316154077,3.20527,2213.6,2213.5,4.55527]
[1625316167574,3.20527,2213.6,2213.5,2.35]
[1625316167671,3.20527,2213.6,2213.3,2.20527]
[1625316168122,2.20527,2213.4,2213.3,2.20527]
[1625316174691,2.20527,2213.4,2213.3,2.33909645]
[1625316175556,2.20527,2213.4,2213.3,2.20527]
[1625316176708,2.20527,2213.4,2213.3,2.33909514]
[1625316177608,2.20527,2213.4,2213.3,3.66947451]
[1625316178010,3.20527,2213.4,2213.3,3.66947451]
[1625316178663,3.20527,2213.4,2213.3,2.33909514]
[1625316180514,3.20527,2213.4,2213.3,3.66970033]
[1625316185879,2.20527,2213.6,2213.3,3.66970033]
[1625316185983,16.35378517,2215.0,2213.3,2.33909514]
[1625316186084,16.35378517,2215.0,2213.3,8.33909514]
[1625316186183,1.30378517,2215.0,2213.3,9.00811542]
[1625316186283,3.50905517,2215.0,2214.9,4.41054]
[1625316186434,2.20527,2215.0,2214.9,7.07514]
[1625316186684,2.20527,2215.0,2214.9,2.6646]
[1625316187639,2.20527,2215.0,2214.2,3.4706]
[1625316188289,4.41054,2214.3,2214.2,5.67587]
[1625316188740,4.41054,2214.3,2214.2,5.80965004]
[1625316189040,1.0,2215.4,2214.2,7.14052179]
[1625316189156,14.8754,2215.5,2214.2,7.14052179]
[1625316189490,14.8754,2215.5,2214.2,7.00674175]
[1625316190291,14.8754,2215.5,2214.3,0.13377522]
[1625316190391,2.20527,2214.8,2214.7,2.20527]
[1625316190493,2.20527,2214.8,2214.7,5.78867]
[1625316192346,4.41054,2214.8,2214.7,5.78867]
[1625316196064,4.41054,2214.8,2214.7,5.92242077]
[1625316198217,14.8754,2215.5,2214.7,5.92242077]
[1625316198467,2.20527,2215.3,2215.2,2.20527]
[1625316198567,2.20527,2215.3,2215.2,5.89377]
[1625316200420,4.41054,2215.3,2215.2,5.89377]
[1625316201676,1.30901371,2216.1,2215.2,5.89377]
[1625316201772,1.30901371,2216.1,2215.2,6.89377]
[1625316201973,1.30901371,2216.1,2215.2,7.02749426]
[1625316202324,1.30901371,2216.1,2215.3,16.30956]
[1625316202474,1.30901371,2216.1,2216.0,2.20527]
[1625316202576,2.20527,2216.2,2216.0,5.27867]
[1625316204482,4.41054,2216.2,2216.0,5.27867]
[1625316205495,1.0,2216.1,2214.8,22.13076762]
[1625316205591,1.0,2216.1,2215.0,1.32990578]
[1625316206144,1.30533259,2215.9,2214.3,1.33022971]
[1625316206245,1.0,2215.8,2214.3,1.33022971]
[1625316206492,2.20527,2214.7,2214.6,2.20527]
[1625316206593,2.20527,2214.7,2214.6,3.53522777]
[1625316206795,2.20527,2214.7,2214.6,8.29422777]
[1625316206994,2.20527,2214.7,2214.6,8.4279714]
[1625316207395,2.20527,2214.7,2214.6,24.7716144]
[1625316207495,2.20527,2214.7,2214.6,23.44165663]
[1625316207798,2.20527,2214.7,2214.6,7.09801363]
[1625316208198,5.48867,2214.7,2214.6,6.96427]
[1625316208546,8.69394,2214.7,2214.6,6.96427]
[1625316208909,8.69394,2214.7,2214.6,2.20527]
[1625316210770,8.69394,2214.7,2214.0,1.33007078]
[1625316211473,8.69394,2214.7,2213.8,1.33026615]
[1625316211873,8.69394,2214.7,2213.7,1.33033608]
[1625316212574,4.41054,2213.8,2213.7,1.33033608]
[1625316212822,4.41054,2213.8,2213.6,1.33034224]
[1625316213026,4.41054,2213.8,2213.7,1.33033171]
[1625316213126,4.41054,2213.8,2213.7,1.46413019]
[1625316214546,4.41054,2213.8,2213.7,3.66940019]
[1625316214647,4.41054,2213.8,2213.7,2.33906848]
[1625316216238,4.41054,2213.8,2213.7,3.66941384]
[1625316216589,5.41054,2213.8,2213.7,3.66941384]
[1625316217339,5.41054,2213.8,2213.7,2.33906848]
[1625316218590,4.41054,2213.8,2213.7,2.33906848]
[1625316218691,4.41054,2213.8,2213.7,3.66944303]
[1625316220145,4.41054,2213.8,2213.7,6.31054303]
[1625316220948,4.41054,2213.8,2213.7,4.98016848]
[1625316222964,4.41054,2213.8,2213.7,2.33906848]
[1625316228127,4.41054,2213.8,2213.7,3.66938979]
[1625316228425,4.41054,2213.8,2213.7,1.46411979]
[1625316229176,4.41054,2213.8,2213.7,0.13379848]
[1625316229627,4.41054,2213.8,2213.6,0.13379696]
[1625316230328,4.41054,2213.8,2213.7,16.485485]
[1625316230477,4.41054,2213.8,2213.7,17.81589843]
[1625316230727,4.41054,2213.8,2213.7,17.94969698]
[1625316231981,4.41054,2213.8,2213.7,16.61928355]
[1625316232130,4.35734,2213.8,2213.7,16.61928355]
[1625316232281,4.35734,2213.8,2213.7,19.27994889]
[1625316232580,4.35734,2213.8,2213.7,23.69048889]